bitfinex-derivatives/quotes_ETHF0:USTF0_20251005
["timestamp","ask_amount","ask_price","bid_price","bid_amount"]
[1759632389436,1.4623,4524.7,4524.5,1.29666]
[1759632389633,1.4623,4524.7,4524.5,4.10953373]
[1759632389833,1.4623,4524.9,4524.5,0.90173373]
[1759632390134,0.232,4524.8,4524.7,1.89065]
[1759632390331,1.4623,4525.4,4525.2,0.39761]
[1759632390533,0.232,4525.3,4525.0,3.2078]
[1759632390735,1.4623,4525.2,4525.0,3.2078]
[1759632391030,1.3549,4525.2,4525.1,0.39762]
[1759632391534,1.5869,4525.2,4525.1,0.39762]
[1759632391842,1.5869,4525.2,4525.1,1.78732]
[1759632392132,1.3549,4525.4,4525.3,0.39759]
[1759632392331,1.5869,4525.4,4525.1,1.3897]
[1759632392531,1.5869,4525.4,4525.0,3.2078]
[1759632392728,1.3549,4525.2,4524.5,6.04283373]
[1759632392932,0.39763,4525.0,4524.5,6.04283373]
[1759632393128,1.4729,4524.9,4524.5,5.52663373]
[1759632393331,0.232,4525.1,4524.5,5.52663373]
[1759632393332,1.7049,4525.1,4524.5,5.52663373]
[1759632393533,4.6807,4525.6,4525.0,4.6249]
[1759632393728,1.4729,4525.4,4525.1,1.4171]
[1759632393931,1.4729,4525.4,4525.0,3.2078]
[1759632394136,1.4729,4525.4,4525.1,1.4171]
[1759632394432,1.87049,4525.4,4525.0,3.2078]
[1759632394634,1.4729,4525.4,4525.0,3.2078]
[1759632394834,1.4729,4525.4,4525.1,1.4171]
[1759632394835,1.87049,4525.4,4525.1,1.4171]
[1759632395038,1.4729,4525.4,4525.0,3.2078]
[1759632395340,0.6296,4525.3,4525.1,1.4171]
[1759632395649,0.6296,4525.3,4525.0,3.2078]
[1759632395650,1.87056,4524.6,4524.5,0.90173373]
[1759632395829,0.39764,4524.9,4524.5,2.31883373]
[1759632396139,0.232,4524.8,4524.6,1.4171]
[1759632396333,0.39766,4524.7,4524.6,1.4171]
[1759632396937,0.232,4524.8,4524.5,0.90173373]
[1759632397137,0.232,4524.8,4524.6,1.4171]
[1759632397332,0.232,4524.8,4524.5,1.29939373]
[1759632397639,0.232,4524.8,4524.7,0.39765]
[1759632397839,0.232,4524.8,4524.7,1.81475]
[1759632398440,1.4729,4525.6,4524.8,1.4171]
[1759632398643,4.6807,4525.9,4525.7,1.81466]
[1759632398837,0.232,4525.8,4525.7,1.81466]
[1759632400244,1.7049,4525.8,4525.7,0.39756]
[1759632400440,1.7049,4525.8,4525.3,1.4171]
[1759632400648,1.4729,4525.7,4525.3,1.8147]
[1759632400849,1.4729,4525.7,4525.0,3.2078]
[1759632401043,1.4729,4525.4,4525.0,3.2078]
[1759632401342,0.5531,4525.5,4525.0,3.2078]
[1759632401343,0.232,4525.3,4525.1,0.39761]
[1759632401646,1.4729,4525.1,4524.5,0.90173373]
[1759632401846,0.39764,4524.9,4524.6,0.39766]
[1759632402041,1.4729,4524.7,4524.6,0.39766]
[1759632402247,0.39766,4524.7,4524.5,0.90173373]
[1759632402448,1.4729,4524.7,4524.6,0.39766]
[1759632402947,1.4729,4524.7,4524.5,0.90173373]
[1759632403141,0.232,4524.8,4524.5,0.90173373]
[1759632403345,1.4729,4524.7,4524.5,0.90173373]
[1759632403744,1.4729,4524.7,4524.5,1.29940373]
[1759632403942,1.4729,4524.7,4524.5,0.90173373]
[1759632404345,0.232,4524.8,4524.5,0.90173373]
[1759632404644,1.4729,4524.7,4524.5,0.90173373]
[1759632404951,1.4729,4524.7,4524.6,1.81476]
[1759632405542,3.2078,4525.4,4525.2,0.3976]
[1759632405748,1.4729,4525.3,4525.2,0.3976]
[1759632405949,3.2078,4525.4,4525.3,1.4171]
[1759632406152,3.4398,4525.4,4525.3,1.4171]
[1759632407051,34.482,4526.2,4525.3,3.2078]
[1759632407052,1.4729,4526.2,4525.3,3.2078]
[1759632407352,1.7049,4526.1,4526.0,0.39753]
[1759632409852,1.4729,4526.0,4525.9,0.39754]
[1759632410054,0.5531,4526.0,4525.8,0.39755]
[1759632410254,1.4729,4525.9,4525.8,0.39755]
[1759632410555,1.4729,4525.9,4525.3,3.2078]
[1759632410753,1.4729,4525.7,4525.5,0.39758]
[1759632411049,0.231,4525.8,4525.0,1.4171]
[1759632411263,1.4729,4525.4,4524.8,3.2078]
[1759632411455,1.7039,4525.3,4525.2,0.3976]
[1759632411760,1.4729,4525.2,4525.1,0.39761]
[1759632412054,1.4729,4525.2,4525.1,1.81471]
[1759632412245,2.026,4525.5,4525.4,0.39759]
[1759632412448,2.257,4525.5,4525.4,0.39759]
[1759632412650,1.4729,4525.9,4525.8,0.39755]
[1759632412855,1.7039,4525.9,4525.8,0.39755]
[1759632413049,1.4729,4525.8,4525.0,0.565]
[1759632413255,1.4729,4525.8,4525.6,0.39757]
[1759632413457,1.4729,4525.8,4525.7,0.39756]
[1759632414859,1.4729,4525.8,4525.7,1.81466]
[1759632415562,1.4729,4525.8,4525.7,0.39756]
[1759632416160,1.4729,4525.8,4525.6,0.39757]
[1759632416360,1.4729,4525.8,4525.7,0.39756]
[1759632416956,1.4729,4525.8,4525.4,0.39758]
[1759632417152,3.4388,4525.9,4525.2,1.4171]
[1759632417153,3.4388,4525.9,4525.6,0.39757]
[1759632417352,1.4729,4525.8,4525.6,0.39757]
[1759632417553,4.6807,4525.9,4524.9,3.7901907]
[1759632417758,1.4729,4525.9,4525.8,1.4171]
[1759632417959,1.7039,4525.9,4525.8,1.4171]
[1759632418765,0.231,4525.9,4525.8,1.81466]
[1759632419159,1.4729,4526.3,4526.2,0.39752]
[1759632419361,1.7039,4526.3,4526.2,1.81462]
[1759632419557,1.4729,4526.7,4526.6,1.81459]
[1759632419761,1.47499079,4526.8,4526.7,1.4171]
[1759632420065,0.5531,4526.5,4526.2,0.39752]
[1759632420265,1.7039,4526.4,4525.7,1.4171]
[1759632420568,1.4729,4526.3,4526.0,1.4171]
[1759632421063,1.4729,4526.2,4525.6,1.9994907]
[1759632421268,0.5531,4526.0,4525.4,3.2078]
[1759632421569,1.4729,4525.9,4525.8,0.39755]
[1759632421865,1.7039,4526.1,4525.9,0.39754]
[1759632422167,1.4729,4526.1,4526.0,1.4171]
[1759632422363,1.7039,4526.1,4526.0,1.4171]
[1759632422668,1.4729,4526.0,4525.9,0.39754]
[1759632423667,0.231,4526.1,4525.9,0.39754]
[1759632423864,1.6284,4526.1,4525.9,1.84854]
[1759632424067,1.3974,4526.0,4525.9,1.84854]
[1759632424565,1.3974,4526.0,4525.9,0.39754]
[1759632425364,1.94,4526.0,4525.9,0.39754]
[1759632425871,2.171,4526.0,4525.9,0.39754]
[1759632426261,0.5426,4525.5,4525.1,0.5823907]
[1759632426460,1.3974,4525.3,4525.2,0.39761]
[1759632426668,1.3974,4525.3,4525.2,1.84861]
[1759632427259,1.3974,4525.3,4525.2,2.4310007]
[1759632428175,1.3974,4525.3,4525.2,0.9800007]
[1759632428360,1.3974,4525.3,4525.1,0.39761]
[1759632428361,1.795,4525.3,4525.1,0.39761]
[1759632428667,1.3974,4525.3,4525.1,0.39762]
[1759632428868,0.231,4525.4,4524.8,0.5823907]
[1759632429171,1.3974,4524.9,4524.8,0.39764]
[1759632429470,1.6284,4524.9,4524.8,0.39764]
[1759632429675,1.6284,4524.9,4524.6,0.5823907]
[1759632429970,1.3974,4524.8,4524.7,0.39765]
[1759632430167,1.3974,4524.8,4524.7,0.9800407]
[1759632430365,1.3974,4524.8,4524.7,2.4310407]
[1759632431572,1.3974,4524.8,4524.7,0.9800407]
[1759632431773,1.6284,4524.8,4524.7,0.98332547]
[1759632432972,1.6284,4524.8,4524.7,2.43432547]
[1759632433466,1.6284,4524.8,4524.7,0.98332547]
[1759632434275,3.518,4524.8,4524.7,1.94732547]
[1759632434568,3.518,4524.8,4524.7,4.33232547]
[1759632435267,2.3575,4525.2,4525.1,1.36162]
[1759632435472,3.518,4525.2,4525.1,1.36162]
[1759632436274,3.518,4525.2,4525.1,0.39762]
[1759632436567,1.8896,4524.9,4524.7,0.39765]
[1759632436762,3.518,4524.8,4524.7,1.36165]
[1759632437372,3.518,4524.8,4524.7,0.39765]
[1759632437571,3.518,4524.8,4524.7,1.36165]
[1759632437968,0.231,4524.8,4524.7,3.74665]
[1759632438366,3.518,4524.8,4524.7,1.36165]
[1759632439173,3.518,4524.8,4524.7,3.74665]
[1759632440167,3.518,4524.8,4524.7,0.39765]
[1759632440470,3.287,4524.6,4524.5,4.10953373]
[1759632440668,3.287,4524.6,4524.5,0.53566307]
[1759632440968,3.287,4524.0,4523.9,0.39772]
[1759632441171,3.2078,4524.9,4523.9,3.74672]
[1759632441368,2.77775214,4528.8,4527.5,0.5661]
[1759632441671,0.5426,4530.0,4529.8,0.3972]
[1759632441968,0.5426,4530.5,4530.4,0.39715]
[1759632442173,0.6856,4530.5,4530.4,6.58342837]
[1759632442364,0.68836045,4530.5,4530.4,5.03144227]
[1759632443072,0.68836045,4530.5,4530.4,4.63429227]
[1759632443271,2.08576045,4530.5,4530.4,4.63429227]
[1759632444275,2.08576045,4530.5,4530.4,5.79025606]
[1759632444973,2.08576045,4530.5,4530.4,4.63429227]
[1759632446069,2.17376045,4530.5,4530.4,4.63429227]
[1759632446471,2.17376045,4530.5,4530.4,1.42649227]
[1759632446979,2.17376045,4530.5,4530.4,1.82364227]
[1759632447474,2.17376045,4530.5,4530.4,4.63429227]
[1759632448776,2.17376045,4530.5,4530.4,4.6567348]
[1759632449276,1.94276045,4530.5,4530.4,4.6567348]
[1759632449477,2.17376045,4530.5,4530.4,4.6567348]
[1759632449971,1.44262045,4530.5,4530.4,4.6567348]
[1759632450175,0.5426,4531.5,4531.4,0.39706]
[1759632450372,0.7736,4531.5,4531.4,2.99330441]
[1759632451168,34.46,4533.3,4532.4,0.39697]
[1759632451379,0.62794,4532.9,4532.7,0.76533694]
[1759632451678,3.16099679,4532.9,4532.8,0.79483199]
[1759632451879,2.92999679,4532.9,4532.8,1.56016893]
[1759632452073,1.6926,4532.9,4532.8,0.79483199]
[1759632452277,1.69435294,4532.9,4532.8,0.79483199]
[1759632452778,1.69435294,4532.9,4532.8,1.46083329]
[1759632452973,1.46335294,4532.9,4532.8,2.0331391]
[1759632453167,1.69435294,4532.9,4532.8,2.03311833]
[1759632453370,1.69435294,4532.9,4532.8,1.46081252]
[1759632454575,1.69435294,4532.9,4532.8,2.22581059]
[1759632454776,1.69435294,4532.9,4532.8,1.46081252]
[1759632455172,1.69435294,4532.9,4532.8,2.0322044]
[1759632455375,1.69435294,4532.9,4532.8,1.46081252]
[1759632455872,1.69435294,4532.9,4532.8,1.11601983]
[1759632456272,1.69435294,4532.9,4532.8,1.51295983]
[1759632456467,1.69435294,4532.9,4532.8,1.11601983]
[1759632456973,1.46335294,4532.9,4532.8,1.11601983]
[1759632457178,1.69435294,4532.9,4532.8,1.11601983]
[1759632457477,1.69435294,4532.9,4532.8,1.8810179]
[1759632457676,1.69435294,4532.9,4532.8,1.11601983]
[1759632459075,1.69435294,4532.9,4532.8,1.6863622]
[1759632459380,1.69435294,4532.9,4532.8,1.11601983]
[1759632460477,1.46335294,4532.9,4532.8,1.68635169]
[1759632460679,1.46335294,4532.9,4532.8,1.43755303]
[1759632460680,1.69335294,4532.9,4532.8,1.43755303]
[1759632461078,1.69335294,4532.9,4532.8,1.3700765]
[1759632462082,1.69335294,4532.9,4532.8,1.94058131]
[1759632462396,1.69335294,4532.9,4532.8,1.6193802]
[1759632462680,1.69335294,4532.9,4532.8,1.94115086]
[1759632462881,1.69335294,4532.9,4532.8,1.37031396]
[1759632463882,1.46335294,4532.9,4532.8,1.76725396]
[1759632464180,1.69335294,4532.9,4532.8,1.37031396]
[1759632464385,1.69335294,4532.9,4532.8,1.94107528]
[1759632464881,1.69335294,4532.9,4532.8,1.61930462]
[1759632465185,1.69335294,4532.9,4532.8,1.93148527]
[1759632465478,1.69335294,4532.9,4532.8,1.36072395]
[1759632466382,1.69335294,4532.9,4532.8,2.12572202]
[1759632466785,2.69175294,4532.9,4532.8,2.12572202]
[1759632467086,2.69175294,4532.9,4532.8,2.87412202]
[1759632467785,3.74245294,4532.9,4532.8,1.36072395]
[1759632467980,3.74245294,4532.9,4532.8,1.0485433]
[1759632468286,3.74245294,4532.9,4532.8,0.32118784]
[1759632469284,3.74245294,4532.9,4532.8,1.27621756]
[1759632469485,3.74245294,4532.9,4532.8,0.97643247]
[1759632470290,3.74245294,4532.9,4532.8,1.27647979]
[1759632470788,11.65845583,4532.9,4532.8,1.08758854]
[1759632470988,3.5207,4532.5,4532.2,0.5732877]
[1759632471182,4.1062,4532.0,4531.9,3.2078]
[1759632471382,4.3362,4532.0,4531.9,3.2078]
[1759632471579,44.53090537,4532.0,4531.8,0.76499807]
[1759632471786,44.53090537,4532.0,4531.9,0.58031927]
[1759632471983,39.53090537,4532.0,4531.9,0.58031927]
[1759632472178,0.5855,4531.5,4531.4,3.2078]
[1759632472385,2.2871,4531.5,4531.4,3.2078]
[1759632473389,2.0571,4531.0,4530.9,3.2078]
[1759632473588,2.2871,4531.0,4530.9,3.2078]
[1759632474383,4.3362,4531.0,4530.9,3.2078]
[1759632474696,1.4716,4530.9,4530.8,3.2078]
[1759632474990,3.5207,4530.9,4530.8,3.2078]
[1759632475384,3.91781,4530.9,4530.8,3.2078]
[1759632477190,6.81435412,4530.9,4530.8,3.2078]
[1759632477385,11.81435412,4530.9,4530.8,3.2078]
[1759632478390,2.44623,4530.7,4530.6,0.183]
[1759632478600,4.14783,4530.7,4530.6,0.183]
[1759632478792,6.9597968,4530.7,4530.6,0.183]
[1759632479794,11.9597968,4530.7,4530.6,0.183]
[1759632480299,11.89609571,4530.7,4530.6,0.183]
[1759632480600,46.56609571,4530.7,4530.6,0.183]
[1759632480802,46.3997968,4530.7,4530.6,0.183]
[1759632481101,3.9179,4529.9,4529.8,3.2078]
[1759632481290,4.1479,4529.9,4529.8,3.2078]
[1759632481495,3.7507,4529.9,4529.8,4.2542]
[1759632481694,4.1479,4529.9,4529.8,4.2542]
[1759632482299,4.1479,4529.9,4529.8,4.25699579]
[1759632483302,4.1479,4529.9,4529.8,3.21059579]
[1759632483498,3.7507,4529.9,4529.8,0.00279579]
[1759632483699,3.7507,4529.9,4529.8,1.04769579]
[1759632484602,3.7507,4529.9,4529.8,0.00279579]
[1759632486196,2.4576,4530.4,4530.3,1.0449]
[1759632486398,1.7129,4530.4,4530.3,6.6721]
[1759632486800,3.2078,4530.9,4530.3,6.6721]
[1759632487006,3.2078,4530.9,4530.3,3.2078]
[1759632487007,1.7129,4530.8,4530.3,3.2078]
[1759632487206,1.7129,4530.8,4530.7,3.4643]
[1759632487601,3.7283,4530.8,4530.7,1.9984]
[1759632488306,1.7129,4530.8,4530.7,3.4643]
[1759632488807,2.6876,4530.8,4530.7,1.9984]
[1759632490511,1.4829,4531.2,4531.1,3.4643]
[1759632490703,1.7129,4531.2,4531.1,6.6721]
[1759632490902,3.7283,4531.2,4531.1,3.2078]
[1759632491207,1.4829,4530.8,4530.7,1.9984]
[1759632491404,0.9747,4530.6,4530.5,3.2078]
[1759632491610,3.7283,4530.6,4530.5,4.2527]
[1759632491912,1.4829,4530.1,4530.0,6.6721]
[1759632492114,2.6876,4530.1,4530.0,6.6721]
[1759632492416,2.6876,4530.1,4530.0,5.2062]
[1759632492816,2.6876,4530.1,4530.0,6.6721]
[1759632493012,0.6069,4530.5,4530.3,0.9535]
[1759632493013,1.4829,4530.4,4530.3,0.9535]
[1759632493309,1.4829,4530.4,4530.0,8.2078]
[1759632493310,1.4829,4530.9,4530.8,1.9984]
[1759632493515,2.6876,4530.9,4530.8,1.9984]
[1759632493716,5.57343353,4530.9,4530.8,1.9984]
[1759632493918,2.4576,4530.9,4530.8,1.9984]
[1759632494218,3.7283,4530.9,4530.8,1.9984]
[1759632494417,3.7283,4530.9,4530.8,1.0449]
[1759632494612,3.7283,4530.9,4530.2,0.39717]
[1759632494915,3.4983,4530.7,4530.6,1.0449]
[1759632495115,3.7283,4530.7,4530.6,1.0449]
[1759632495318,3.7283,4530.7,4530.6,4.2527]
[1759632495519,3.7283,4530.7,4530.6,5.2062]
[1759632495715,34.447,4531.6,4530.7,0.39713]
[1759632495920,34.447,4531.6,4530.6,4.6737]
[1759632495921,1.4829,4531.3,4530.6,4.6737]
[1759632496221,1.4829,4531.3,4531.2,6.6721]
[1759632496222,2.916345,4531.3,4531.2,6.6721]
[1759632496517,3.7283,4531.3,4531.2,5.2062]
[1759632496916,3.7283,4531.3,4531.2,3.2078]
[1759632497117,3.7283,4531.3,4531.2,4.2527]
[1759632497415,1.4829,4531.3,4531.2,6.6721]
[1759632497612,1.7129,4531.3,4531.2,6.6721]
[1759632497809,1.4829,4531.8,4531.2,11.6721]
[1759632498015,2.0154,4531.6,4531.2,3.2078]
[1759632498323,2.4576,4531.3,4531.2,4.2527]
[1759632498521,3.7283,4531.3,4531.2,3.2078]
[1759632498717,3.7283,4531.3,4531.2,4.2527]
[1759632501925,3.7283,4531.3,4531.2,3.2078]
[1759632502216,2.4576,4530.6,4530.5,5.2062]
[1759632502422,2.6876,4530.6,4530.5,6.6721]
[1759632502622,0.23,4530.6,4530.5,6.6721]
[1759632502919,0.23,4530.6,4530.5,5.2062]
[1759632503120,2.6876,4530.6,4530.5,5.2062]
[1759632503822,3.7283,4530.6,4530.5,5.2062]
[1759632504021,4.12543,4530.6,4530.5,3.2078]
[1759632504620,6.9820048,4530.6,4530.5,3.2078]
[1759632506728,2.0154,4530.1,4530.0,3.2078]
[1759632506928,3.7283,4530.1,4530.0,3.2078]
[1759632507424,2.0154,4529.9,4529.8,0.00279579]
[1759632507627,3.7283,4529.9,4529.8,0.00279579]
[1759632514627,1.4974,4528.9,4528.4,4.6483]
[1759632514829,1.4974,4528.9,4528.8,1.9527]
[1759632514830,3.4832,4528.9,4528.8,1.9527]
[1759632515130,3.7132,4528.9,4528.8,1.9527]
[1759632515723,3.71480413,4528.9,4528.8,1.95447943]
[1759632516128,3.71480413,4528.9,4528.4,3.2078]
[1759632516129,0.5763,4528.5,4528.4,3.2078]
[1759632516332,4.2895,4528.5,4528.4,4.1833]
[1759632517228,4.2895,4528.5,4528.4,4.18612408]
[1759632517623,4.2895,4528.5,4528.4,3.21062408]
[1759632519825,1.4323,4527.6,4527.5,1.9527]
[1759632520026,3.1597,4527.6,4527.5,1.9527]
[1759632520232,4.1106,4527.6,4527.5,1.9527]
[1759632520828,4.1106,4527.6,4527.5,1.95453968]
[1759632521729,4.1106,4527.6,4527.5,0.97733968]
[1759632521924,4.1106,4527.6,4527.5,0.00183968]
[1759632522528,6.93354656,4527.6,4527.5,0.00183968]
[1759632522727,6.93354656,4527.6,4526.4,5.1605]
[1759632522728,3.1086,4526.5,4526.4,5.1605]
[1759632523030,3.3386,4526.5,4526.4,5.1605]
[1759632523728,3.3386,4526.5,4526.4,5.16270253]
[1759632524127,0.5763,4527.0,4526.4,5.16270253]
[1759632524328,1.4974,4527.2,4527.1,1.9527]
[1759632524631,5.60004221,4527.2,4527.1,3.3932]
[1759632525130,6.55094221,4527.2,4527.1,1.9527]
[1759632525334,6.94837221,4527.2,4527.1,0.9755]
[1759632528232,3.88066,4526.9,4526.8,3.2078]
[1759632528534,4.45699,4526.5,4526.4,0.97770253]
[1759632528729,4.68699,4526.5,4526.4,0.97770253]
[1759632529934,4.68699,4526.5,4526.4,0.00220253]
[1759632531336,7.50359648,4526.5,4526.4,0.00220253]
[1759632532333,3.88076,4525.8,4525.7,3.2078]
[1759632532533,4.10976,4525.8,4525.7,3.2078]
[1759632532729,1.4974,4526.4,4525.8,1.4405]
[1759632532934,3.8807,4526.4,4526.3,0.9755]
[1759632533233,7.00950033,4526.4,4526.3,0.97819244]
[1759632533532,7.00950033,4526.4,4526.3,0.00269244]
[1759632534942,1.4974,4525.7,4525.2,3.2078]
[1759632535138,4.0595,4525.5,4525.4,1.9527]
[1759632535532,4.2885,4525.5,4525.4,1.9527]
[1759632535939,4.29031721,4525.5,4525.4,1.9552694]
[1759632536239,4.29031721,4525.5,4525.4,0.0025694]
[1759632537236,4.29031721,4525.5,4525.4,0.9780694]
[1759632538642,4.29031721,4525.5,4525.4,0.0025694]
[1759632540339,7.14217115,4525.5,4525.4,0.0025694]
[1759632540943,7.14217115,4525.5,4525.4,9.4e-06]
[1759632541147,12.14217115,4525.5,4525.4,9.4e-06]
[1759632542840,12.14217115,4525.5,4524.2,3.2078]
[1759632542841,0.958,4524.3,4524.2,3.2078]
[1759632543047,3.99939,4524.3,4524.2,3.2078]
[1759632543242,1.9283,4523.7,4523.6,4.1314]
[1759632543448,3.6017,4523.7,4523.6,5.0648]
[1759632543840,3.6017,4523.7,4523.6,5.06705434]
[1759632544347,3.6017,4523.7,4523.6,4.13365434]
[1759632544647,3.6017,4523.7,4523.6,3.21005434]
[1759632545450,0.6136,4524.5,4524.3,0.9236]
[1759632545451,37.8577,4524.4,4524.3,0.9236]
[1759632545745,5.2873659,4523.7,4523.6,5.06705434]
[1759632545949,1.6734,4523.7,4523.6,6.45215434]
[1759632546643,6.02393724,4525.6,4524.3,1.857]
[1759632546644,2.80008,4524.4,4524.3,1.857]
[1759632546846,2.80008,4524.4,4523.6,8.21005434]
[1759632546847,1.4444,4524.3,4524.2,3.2078]
[1759632547044,2.4024,4523.7,4523.6,5.06705434]
[1759632547247,3.99944,4523.7,4523.6,5.06705434]
[1759632548047,3.99944,4523.7,4523.6,4.13365434]
[1759632548241,6.91864511,4523.7,4523.6,0.00225434]
[1759632549746,6.91864511,4523.7,4523.6,4.34e-06]
[1759632549950,10.12644511,4523.7,4523.6,4.34e-06]
[1759632550450,15.12644511,4523.7,4523.6,4.34e-06]
[1759632551751,10.12644511,4523.7,4523.6,4.34e-06]
[1759632552053,44.61944511,4523.7,4523.6,4.34e-06]
[1759632553952,0.39789,4522.0,4521.9,4.1314]
[1759632554154,4.61319,4522.0,4521.9,4.1314]
[1759632554353,3.41394,4521.5,4521.4,5.0648]
[1759632554554,3.02934,4521.5,4521.4,6.4499]
[1759632554754,2.07134,4521.5,4521.4,6.4499]
[1759632554959,0.23098826,4521.5,4521.4,11.45213828]
[1759632555351,2.63338826,4521.5,4521.4,11.45213828]
[1759632555555,4.21728826,4521.5,4521.4,3.21003828]
[1759632555849,4.21728826,4521.5,4521.4,1.85923828]
[1759632555850,6.84377175,4521.5,4521.4,1.85923828]
[1759632556053,2.63338826,4521.5,4521.4,3.24433828]
[1759632556256,1.67538826,4521.5,4521.4,3.24433828]
[1759632556751,1.67538826,4521.5,4521.4,6.45213828]
[1759632557556,2.40438826,4521.5,4521.4,6.45213828]
[1759632557746,2.63338826,4521.5,4521.4,6.45213828]
[1759632558257,2.40438826,4521.5,4521.4,6.45213828]
[1759632558455,2.63338826,4521.5,4521.4,6.45213828]
[1759632558656,0.00198826,4521.5,4521.4,11.85007828]
[1759632558955,0.23098826,4521.5,4521.4,11.45213828]
[1759632559151,2.63338826,4521.5,4521.4,5.06703828]
[1759632559357,4.21728826,4521.5,4521.4,5.06703828]
[1759632560156,1.67538826,4521.5,4521.4,6.45213828]
[1759632560351,0.23098826,4521.5,4521.4,6.45213828]
[1759632560548,0.23098826,4521.5,4521.4,11.45213828]
[1759632560754,0.23098826,4521.5,4521.4,6.45213828]
[1759632560755,1.67538826,4521.5,4521.4,6.45213828]
[1759632562060,0.23098826,4521.5,4521.4,6.45213828]
[1759632563549,2.63338826,4521.5,4521.4,6.45213828]
[1759632564362,1.67538826,4521.5,4521.4,6.45213828]
[1759632564558,0.00198826,4521.5,4521.4,6.45213828]
[1759632564860,0.23098826,4521.5,4521.4,6.45213828]
[1759632565253,1.67538826,4521.5,4521.4,6.45213828]
[1759632565853,0.23098826,4521.5,4521.4,6.45213828]
[1759632566954,5.6102,4522.4,4522.3,1.857]
[1759632567157,0.39788,4522.1,4522.0,0.9236]
[1759632567369,3.6017,4522.1,4522.0,0.9236]
[1759632567660,3.6017,4522.1,4522.0,1.857]
[1759632568058,3.60374018,4522.1,4522.0,1.857]
[1759632568458,2.058,4522.0,4521.9,0.9236]
[1759632568757,4.38419,4522.0,4521.9,1.857]
[1759632568957,1.84229,4522.0,4521.9,3.2421]
[1759632569353,2.80029,4522.0,4521.9,3.2421]
[1759632570267,3.02929,4522.0,4521.9,3.2421]
[1759632570460,3.77063,4521.6,4521.5,1.857]
[1759632570663,3.99963,4521.6,4521.5,1.857]
[1759632571755,2.6314,4521.6,4521.5,3.2301]
[1759632571962,2.6034,4521.6,4521.5,3.2301]
[1759632572360,3.5309,4521.6,4521.5,1.7287102]
[1759632572663,2.82113,4521.5,4521.4,3.21003828]
[1759632572964,4.22603,4521.5,4521.4,3.21003828]
[1759632573465,3.8281,4521.5,4521.4,3.21003828]
[1759632573671,0.6136,4522.0,4521.4,5.05653828]
[1759632573967,1.5617,4522.0,4521.9,3.088]
[1759632574162,1.7907,4522.0,4521.9,6.2958]
[1759632574362,3.1956,4522.0,4521.9,6.2958]
[1759632575762,0.00204018,4522.1,4522.0,0.39789]
[1759632575959,0.23104018,4522.1,4522.0,3.48589]
[1759632577363,0.23104018,4522.1,4522.0,3.088]
[1759632577675,1.63594018,4522.1,4522.0,3.088]
[1759632578165,1.40694018,4522.1,4522.0,3.088]
[1759632578365,2.03382018,4522.1,4522.0,3.088]
[1759632578569,2.97685,4523.0,4522.9,3.088]
[1759632578869,1.6339,4523.0,4522.9,3.088]
[1759632579380,1.4049,4523.6,4523.4,1.8465]
[1759632579664,0.00237085,4523.6,4523.5,3.088]
[1759632579864,2.58437085,4523.6,4523.5,3.088]
[1759632580170,2.58437085,4523.6,4523.5,1.8465]
[1759632580773,1.63627085,4523.6,4523.5,3.088]
[1759632580968,1.57195,4524.3,4524.0,3.6307]
[1759632581163,1.57195,4524.9,4524.6,1.2415]
[1759632581361,3.3442,4524.9,4524.8,5.0543]
[1759632581566,3.5732,4524.9,4524.8,4.1424]
[1759632582071,3.575358,4524.9,4524.8,4.14426312]
[1759632582272,3.575358,4524.9,4524.8,5.05616312]
[1759632583266,2.353,4525.9,4525.8,1.8465]
[1759632583467,3.5732,4525.9,4525.8,5.0543]
[1759632583664,3.5732,4525.9,4525.8,3.2078]
[1759632584276,3.57516232,4525.9,4525.8,3.2078]
[1759632585072,3.57516232,4525.9,4525.8,4.1424]
[1759632585274,3.57516232,4525.9,4525.8,3.2078]
[1759632585571,0.39747,4526.8,4526.2,1.2415]
[1759632585873,3.3442,4526.3,4526.2,1.8465]
[1759632586075,3.5732,4526.3,4526.2,5.0543]
[1759632586474,3.57504511,4526.3,4526.2,5.0543]
[1759632586670,1.63574511,4526.3,4526.2,5.0543]
[1759632586970,0.23084511,4526.3,4526.2,6.2958]
[1759632587363,1.63574511,4526.3,4526.2,6.2958]
[1759632587567,0.23084511,4526.3,4526.2,6.2958]
[1759632587963,2.58384511,4526.3,4526.2,5.0543]
[1759632588172,3.57504511,4526.3,4526.2,5.0543]
[1759632588767,2.58384511,4526.3,4526.2,5.0543]
[1759632588968,2.58384511,4526.3,4526.2,6.2958]
[1759632589173,3.57504511,4526.3,4526.2,5.0543]
[1759632589374,3.57504511,4526.3,4526.2,4.1424]
[1759632590366,0.00184511,4526.3,4526.2,5.0543]
[1759632590570,3.3442,4527.4,4526.8,1.2415]
[1759632590776,3.3442,4526.9,4526.8,4.1424]
[1759632591078,3.5732,4526.9,4526.8,4.1424]
[1759632591577,3.57495302,4526.9,4526.8,4.1424]
[1759632592178,3.57495302,4526.9,4526.8,5.0543]
[1759632593075,0.23075302,4526.9,4526.8,6.2958]
[1759632594075,1.63565302,4526.9,4526.8,6.2958]
[1759632594580,2.58375302,4526.9,4526.8,6.2958]
[1759632594776,2.35475302,4526.9,4526.8,6.2958]
[1759632594977,2.58375302,4526.9,4526.8,6.2958]
[1759632595579,1.40665302,4526.9,4526.8,6.2958]
[1759632595776,1.63565302,4526.9,4526.8,6.2958]
[1759632595981,0.23075302,4526.9,4526.8,6.2958]
[1759632596781,1.63565302,4526.9,4526.8,6.2958]
[1759632597879,2.58375302,4526.9,4526.8,6.2958]
[1759632599280,2.58375302,4526.9,4526.8,5.0543]
[1759632599481,3.57495302,4526.9,4526.8,5.0543]
[1759632600082,3.57495302,4526.9,4526.8,3.2078]
[1759632600289,3.7417,4526.4,4526.3,0.9346]
[1759632600479,3.9707,4526.4,4526.3,0.9346]
[1759632600681,3.5732,4526.4,4526.3,0.9346]